fUSD/lending_fUSD_20241031
["ID","MTS","AMOUNT","RATE_DAILY","PERIOD"]
[341094441,1730363229151,215.24609571,0.00044453,30]
[341094442,1730363229832,1000.0,0.00044453,20]
[341094443,1730363236898,781.82026579,0.00044453,120]
[341094447,1730363246691,325.11430309,0.00044448,31]
[341094450,1730363258804,1048.63555907,0.00044448,120]
[341094451,1730363265342,4317.38337876,0.00044448,30]
[341094452,1730363268377,419.83524572,0.00044448,120]
[341094453,1730363269052,5380.86288703,0.00044448,30]
[341094454,1730363270721,361.13356236,0.00044448,30]
[341094456,1730363274511,300.62010372,0.00044448,30]
[341094457,1730363275965,374.02344729,0.00044448,30]
[341094458,1730363278911,12332.7233539,0.00013,15]
[341094459,1730363292967,329.48782616,0.00044448,120]
[341094460,1730363294300,296.8666072,0.00044448,120]
[341094464,1730363312062,195.28072191,0.00044448,120]
[341094465,1730363314731,245.18426532,0.00044448,30]
[341094466,1730363318100,171.59346071,0.00044448,30]
[341094467,1730363318349,355.98091905,0.00044448,30]
[341094468,1730363318718,236.53402842,0.00044448,30]
[341094469,1730363319022,1568.48408361,0.00044448,120]
[341094470,1730363319422,958.96187445,0.00044448,120]
[341094471,1730363319675,485.47336346,0.00044448,30]
[341094472,1730363319763,360.90860521,0.00044448,30]
[341094474,1730363320688,8922.13193408,0.00044448,30]
[341094475,1730363320766,280.17504002,0.00044448,30]
[341094476,1730363320831,3013.84522469,0.00044448,120]
[341094477,1730363321020,174.48584311,0.00044448,120]
[341094478,1730363321561,211.39831436,0.00044448,120]
[341094479,1730363322601,3775.56115987,0.00044448,30]
[341094480,1730363322628,541.84700068,0.00044448,120]
[341094481,1730363322772,948.45748664,0.00044448,30]
[341094484,1730363326433,300.54935646,0.00044448,120]
[341094486,1730363327106,510.06366447,0.00025,120]
[341094487,1730363328291,696.28943349,0.00044448,30]
[341094488,1730363329413,161.87142186,0.00044448,120]
[341094490,1730363330050,152.75999877,0.00044448,90]
[341094491,1730363330090,467.35105188,0.000145,120]
[341094494,1730363330774,489.5777102,0.00044448,120]
[341094495,1730363331173,12740.84734783,0.00044448,120]
[341094510,1730363402182,157.67,0.00015342,2]
[341094527,1730363432497,-800.0,0.00024027,2]
[341094528,1730363432507,-500.0,0.00024932,2]
[341094529,1730363432516,-413.29606253,0.0002509,120]
[341094530,1730363432526,-800.0,0.00026986,120]
[341094531,1730363432535,-58.16634325,0.00027,120]
[341094532,1730363432611,-194.75608291,0.00027,120]
[341094533,1730363432621,-9200.83281327,0.00027,2]
[341094534,1730363432631,-466.9018687,0.00031,60]
[341094535,1730363432640,-157.43,0.0003272,2]
[341094536,1730363432650,-769.3442114,0.00035,36]
[341094537,1730363432661,-187.75907178,0.00035,30]
[341094538,1730363432671,-50108.59154433,0.00035,2]
[341094539,1730363432681,-924.39204443,0.00035,120]
[341094540,1730363432691,-4459.56818915,0.00035,36]
[341094541,1730363432702,-1323.86822259,0.00036,2]
[341094575,1730363438693,-3718.63488677,0.00036,2]
[341094576,1730363438703,-161.47763536,0.000372,103]
[341094577,1730363438712,-150.0,0.00037342,2]
[341094578,1730363438722,-185.2,0.00037516,120]
[341094579,1730363438731,-409.28,0.00037697,2]
[341094580,1730363438740,-409.28,0.00037707,2]
[341094581,1730363438749,-409.28,0.00037717,2]
[341094583,1730363438758,-409.28,0.00037727,2]
[341094585,1730363438767,-469.9,0.00037729,2]
[341094587,1730363438776,-2000.0,0.0003773,7]
[341094589,1730363438785,-409.28,0.00037736,2]
[341094591,1730363438794,-409.28,0.00037746,2]
[341094593,1730363438803,-409.28,0.00037756,2]
[341094595,1730363438813,-200.33,0.00037762,2]
[341094597,1730363438822,-409.28,0.00037766,2]
[341094599,1730363438831,-409.28,0.00037776,2]
[341094601,1730363438840,-409.28,0.00037786,2]
[341094603,1730363438849,-409.28,0.00037796,2]
[341094604,1730363438858,-156.66,0.000378,31]
[341094606,1730363438867,-156.66,0.000378,31]
[341094609,1730363438876,-409.28,0.00037806,2]
[341094611,1730363438887,-409.28,0.00037816,2]
[341094613,1730363438897,-409.28,0.00037826,2]
[341094615,1730363438906,-409.28,0.00037836,2]
[341094617,1730363438915,-409.28,0.00037846,2]
[341094619,1730363438925,-409.28,0.00037855,2]
[341094620,1730363438933,-409.28,0.00037865,2]
[341094622,1730363438943,-409.28,0.00037875,2]
[341094624,1730363438953,-409.28,0.00037885,2]
[341094626,1730363438965,-161.47763536,0.0003898,114]
[341094627,1730363438974,-295.76163149,0.00039,120]
[341094629,1730363438986,-13842.55674194,0.00039,7]
[341094632,1730363438996,-531.11965211,0.00039,120]
[341094635,1730363439005,-165.97324531,0.00039,120]
[341094637,1730363439014,-7669.58276216,0.00039,7]
[341094639,1730363439027,-42502.24658551,0.00039,7]
[341094641,1730363439036,-499.0,0.000399,120]
[341094643,1730363439045,-1128.23524767,0.0004,21]
[341094645,1730363439054,-184.63742856,0.0004,120]
[341094647,1730363439064,-226.59352134,0.0004,120]
[341094649,1730363439076,-5136.50630994,0.0004,30]
[341094651,1730363439086,-4409.17629274,0.0004,30]
[341094653,1730363439095,-239.1328402,0.0004,30]
[341094655,1730363439104,-1633.54758181,0.0004,14]
[341094657,1730363439114,-1541.45480661,0.0004,60]
[341094659,1730363439123,-444.65497464,0.0004,2]
[341094661,1730363439131,-500.0,0.00040999,31]
[341094663,1730363439141,-162.53620465,0.00040999,31]
[341094665,1730363439150,-208.25623855,0.00040999,31]
[341094667,1730363439159,-500.0,0.00040999,31]
[341094669,1730363439168,-500.0,0.00040999,31]
[341094671,1730363439177,-500.0,0.00040999,31]
[341094673,1730363439186,-500.0,0.00040999,31]
[341094675,1730363439195,-500.0,0.00040999,31]
[341094677,1730363439210,-1106.85023476,0.00041,120]
[341094679,1730363439219,-150.01,0.00041096,2]
[341094681,1730363439228,-250.0,0.00041098,2]
[341094682,1730363439238,-2902.0,0.00041532,2]
[341094683,1730363439247,-158.0,0.00041532,2]
[341094684,1730363439256,-754.598,0.00041532,2]
[341094685,1730363439266,-156.66,0.000418,31]
[341094686,1730363439275,-156.66,0.000418,31]
[341094687,1730363439284,-156.66,0.000418,31]
[341094688,1730363439293,-156.66,0.000418,31]
[341094689,1730363439473,-164.73,0.00041824,2]
[341094690,1730363439486,-250.0,0.00041837,120]
[341094691,1730363439496,-302.81,0.00041837,2]
[341094692,1730363439505,-150.0,0.0004185,7]
[341094693,1730363439514,-1627.01170853,0.00042,120]
[341094694,1730363439525,-734.82725026,0.00042,120]
[341094695,1730363439536,-67940.86556551,0.00042,2]
[341094696,1730363439545,-497.71,0.000421,2]
[341094697,1730363439556,-1000.89007812,0.00042245,3]
[341094698,1730363439566,-162.03,0.00042269,120]
[341094699,1730363439576,-51665.9289457,0.00042345,14]
[341094700,1730363440343,-1000.0,0.00041096,2]
[341094701,1730363440353,-6208.51944473,0.00042345,14]
[341094702,1730363440363,-415.40102686,0.000428,60]
[341094703,1730363440372,-169.92497157,0.000428,28]
[341094704,1730363440382,-239.3939584,0.000429,30]
[341094705,1730363440391,-11958.57247988,0.000429,7]
[341094706,1730363440400,-319.45782066,0.000429,60]
[341094707,1730363440410,-679.86814242,0.00043,120]
[341094708,1730363440419,-62426.59228518,0.00043,2]
[341094709,1730363440428,-211.56291771,0.00043,120]
[341094710,1730363440438,-630.40132783,0.00043,120]
[341094711,1730363440447,-550.25972286,0.00043,2]
[341094712,1730363440457,-989.94712834,0.0004321,7]
[341094713,1730363440467,-1000.89007812,0.000434,3]
[341094714,1730363440476,-15255.46136261,0.000435,2]
[341094715,1730363440486,-466.0,0.00043547,10]
[341094716,1730363440495,-1129.76275888,0.00043547,10]
[341094717,1730363440505,-1159.10323107,0.00043547,10]
[341094718,1730363440514,-561.67469851,0.000436,30]
[341094719,1730363440523,-248.46,0.00043855,2]
[341094720,1730363440532,-244.32457478,0.0004387,2]
[341094721,1730363440541,-201.79584883,0.00043873,2]
[341094722,1730363440551,-500.0,0.00043873,2]
[341094723,1730363440560,-150.81795045,0.0004388,2]
[341094724,1730363440583,-450.0,0.00041,120]
[341094725,1730363440593,-3164.75,0.0004388,2]
[341094733,1730363443408,-359.36984201,0.00026886,2]
[341094734,1730363443418,-1000.0,0.0004185,7]
[341094735,1730363443427,-7767.63797834,0.0004388,2]
[341094736,1730363443617,-131239.93503671,0.0004388,2]
[341094737,1730363443629,-51345.30657299,0.0004388,2]
[341094738,1730363443641,-1351.58477167,0.0004388,2]
[341094841,1730363447806,-359.369842,0.000269,2]
[341094842,1730363447815,-2500.0,0.0004378,2]
[341094843,1730363447824,-10728.66631802,0.0004388,2]
[341094844,1730363447833,-1374.67430406,0.000439,120]
[341094845,1730363447842,-23900.0,0.00043955,2]
[341094846,1730363447851,-813.71,0.00044,2]
[341094847,1730363447860,-984.07192974,0.00044,120]
[341094848,1730363447869,-306.0602987,0.00044,30]
[341094849,1730363447878,-150.0,0.00044007,30]
[341094850,1730363447887,-500.0,0.00044083,4]
[341094851,1730363447896,-500.0,0.00044092,4]
[341094852,1730363447906,-500.0,0.00044101,4]
[341094853,1730363447915,-1158.404,0.0004412,69]
[341094854,1730363447924,-5800.0,0.0004412,7]
[341094855,1730363447933,-57384.33121869,0.000442,12]
[341094856,1730363447942,-456.5854664,0.00044348,2]
[341094857,1730363447951,-371.3289,0.00044353,2]
[341094858,1730363447961,-497.71,0.00044364,2]
[341094859,1730363447970,-511.52680648,0.00044374,30]
[341094860,1730363447980,-295.08,0.00044418,30]
[341094861,1730363447989,-150.5,0.00044428,30]
[341094862,1730363447998,-150.5,0.00044438,30]
[341094863,1730363448007,-244.32457478,0.00044438,2]
[341094864,1730363448017,-244.32457478,0.00044438,2]
[341094865,1730363448026,-180.72,0.00044438,120]
[341094866,1730363448035,-1000.0,0.00044448,31]
[341094867,1730363448045,-1000.0,0.00044448,120]
[341094868,1730363448057,-1000.0,0.00044448,120]
[341094869,1730363448068,-150.0,0.00044448,2]
[341094870,1730363448077,-170384.41100552,0.00044448,2]
[341094871,1730363448090,-10416.28372298,0.00044448,3]
[341094872,1730363448099,-1210.0,0.00044448,2]
[341094873,1730363448108,-3671.7368394,0.00044448,2]
[341094874,1730363448117,-4016.90284205,0.00044448,15]
[341094875,1730363448127,-342.60336096,0.00044448,2]
[341094876,1730363448136,-2957.07636032,0.00044448,2]
[341094877,1730363448145,-225.39395981,0.00044448,7]
[341094878,1730363448155,-1495.86625001,0.00044448,2]
[341094879,1730363448164,-7258.60135069,0.00044448,2]
[341094880,1730363448173,-1012.70463645,0.00044448,2]
[341094881,1730363448183,-5100.08001073,0.00044448,2]
[341094882,1730363448191,-2688.44702051,0.00044448,2]
[341094883,1730363448201,-518.64679671,0.00044448,7]
[341094884,1730363448212,-2414.84396924,0.00044448,2]
[341094885,1730363448224,-300.0,0.00044448,15]
[341094886,1730363448233,-2634.6095796,0.00044448,2]
[341094887,1730363448243,-135209.944515,0.00044448,2]
[341094888,1730363448252,-3194.60062441,0.00044448,2]
[341094889,1730363448261,-194.74441097,0.00044448,10]
[341094890,1730363448270,-1459.28926809,0.00044448,2]
[341094891,1730363448279,-7595.45749484,0.00044448,2]
[341094892,1730363448289,-1051.39210755,0.00044448,2]
[341094893,1730363448298,-5874.87636365,0.00044448,2]
[341094894,1730363448310,-855.91307942,0.00044448,2]
[341094895,1730363448321,-149611.51671759,0.00044448,2]
[341094896,1730363448332,-187.82608768,0.00044448,2]
[341094897,1730363448341,-9090.87578868,0.00044448,2]
[341094898,1730363448350,-1290.35817273,0.00044448,2]
[341094899,1730363448359,-4863.23228583,0.00044448,2]
[341094900,1730363448369,-292.07986387,0.00044448,2]
[341094901,1730363448378,-12631.74674161,0.00044448,2]
[341094902,1730363448387,-1890.73130105,0.00044448,2]
[341094903,1730363448396,-181.12614262,0.00044448,2]
[341094904,1730363448405,-14597.95645794,0.00044448,3]
[341094905,1730363448414,-5495.93803635,0.00044448,2]
[341094906,1730363448423,-284.21283953,0.00044448,2]
[341094907,1730363448432,-1740938.52144378,0.00044448,2]
[341094908,1730363448441,-214.32304112,0.00044448,5]
[341094909,1730363448451,-119382.20374608,0.00044448,2]
[341094910,1730363448463,-442.69225433,0.00044448,2]
[341094911,1730363448474,-1050.78750638,0.00044448,2]
[341094912,1730363448483,-2500.0,0.00044448,2]
[341094913,1730363448493,-570.48734191,0.00044448,2]
[341094914,1730363448502,-2342.34054274,0.00044448,2]
[341094915,1730363448511,-1091.23281865,0.00044448,7]
[341094916,1730363448520,-530.71425163,0.00044448,2]
[341094917,1730363448529,-280478.99800449,0.00044448,2]
[341094918,1730363448697,-898.40667016,0.00044448,2]
[341094919,1730363448706,-2473.78795731,0.00044448,15]
[341094920,1730363448717,-474.2670099,0.00044448,2]
[341094921,1730363448726,-1561.96214763,0.00044448,2]
[341094922,1730363448735,-2000.0,0.00044448,2]
[341094923,1730363448744,-10824.54481103,0.00044448,2]
[341094924,1730363448753,-320.80721852,0.00044448,2]
[341094925,1730363448762,-539.2513429,0.00044448,2]
[341094926,1730363448772,-4928.978723,0.00044448,2]
[341094927,1730363448781,-22651.34132134,0.00044448,2]
[341094928,1730363448790,-3570.83309451,0.00044448,2]
[341094929,1730363448799,-359.05863119,0.00044448,2]
[341094930,1730363448809,-22955.61141741,0.00044448,2]
[341094931,1730363448818,-2170.79726024,0.00044448,2]
[341094932,1730363448828,-279.23017439,0.00044448,2]
[341094933,1730363448837,-695.57014796,0.00044448,14]
[341094934,1730363448846,-6640.9416992,0.00044448,4]
[341094935,1730363448855,-212.24647969,0.00044448,7]
[341094936,1730363448864,-5097.05473252,0.00044448,4]
[341094937,1730363448874,-208.23300724,0.00044448,5]
[341094938,1730363448883,-216.865201,0.00044448,2]
[341094939,1730363448892,-13843.98465975,0.00044448,2]
[341094940,1730363448902,-1019.14678833,0.00044448,2]
[341094941,1730363448911,-209.64748856,0.00044448,2]
[341094942,1730363448920,-7731.94323165,0.00044448,2]
[341094943,1730363448930,-1004.27089261,0.00044448,5]
[341094944,1730363448939,-700.00454291,0.00044448,2]
[341094945,1730363448949,-1039.0,0.00044448,2]
[341094946,1730363448959,-1408.11520112,0.00044448,2]
[341094947,1730363448970,-3089.45501166,0.00044448,3]
[341094948,1730363448979,-199.51398385,0.00044448,2]
[341094949,1730363448989,-7984.56797316,0.00044448,2]
[341094950,1730363448998,-808.869999,0.00044448,2]
[341094951,1730363449008,-1000.0,0.00044453,120]
[341094952,1730363449018,-1000.0,0.00044453,30]
[341094953,1730363449028,-1200.0,0.00044466,120]
[341094954,1730363449038,-1200.0,0.00044466,120]
[341094955,1730363449047,-1200.0,0.00044466,120]
[341094956,1730363449057,-1200.0,0.00044466,120]
[341094957,1730363449067,-2334.42,0.000445,60]
[341094958,1730363449077,-958.74,0.000445,30]
[341094959,1730363449089,-150.0,0.00044532,2]
[341094960,1730363449098,-629.0,0.00044532,2]
[341094961,1730363449108,-169.92497156,0.0004462,28]
[341094962,1730363449117,-1000.0,0.00045,2]
[341094963,1730363449127,-1000.0,0.00045,2]
[341094964,1730363449136,-1000.0,0.00045,2]
[341094965,1730363449146,-1000.0,0.00045082,2]
[341094966,1730363449155,-166.89,0.00045298,2]
[341094967,1730363449165,-161.47763536,0.0004544,120]
[341094968,1730363449175,-647.27,0.00045596,120]
[341094969,1730363449184,-156.66,0.000458,39]
[341094970,1730363449193,-156.66,0.000458,39]
[341094971,1730363449203,-156.66,0.000458,39]
[341094972,1730363449213,-156.66,0.000458,39]
[341094973,1730363449222,-21841.5,0.00045999,2]
[341094974,1730363449231,-180.0,0.00046035,120]
[341094975,1730363449240,-248.46,0.00046048,2]
[341094976,1730363449250,-2334.42,0.000461,60]
[341094977,1730363449259,-958.74,0.000461,30]
[341094978,1730363449268,-2441.15,0.000462,7]
[341094979,1730363449278,-3053.2989,0.00046281,2]
[341094980,1730363449287,-2014.2312,0.00046281,2]
[341094981,1730363449296,-22047.7423166,0.00046381,7]
[341094982,1730363449305,-369.33848089,0.00046381,7]
[341094983,1730363449314,-15420.5152102,0.00046381,7]
[341094984,1730363449323,-32030.7495956,0.00046381,7]
[341094985,1730363449332,-169.92497156,0.0004644,28]
[341094986,1730363449341,-154.32433804,0.00046603,120]
[341094987,1730363449350,-497.71,0.00046628,2]
[341094988,1730363449360,-436.6,0.00047,120]
[341094989,1730363449368,-549.78678892,0.00047,120]
[341094990,1730363449377,-83277.08931487,0.000475,120]
[341094991,1730363449387,-629.0,0.00047532,2]
[341094992,1730363449396,-5175.67927722,0.000476,2]
[341094993,1730363449406,-28692.16,0.000477,29]
[341094994,1730363449415,-50030.84107606,0.0004777,2]
[341094995,1730363449424,-958.74,0.000478,30]
[341094996,1730363449434,-2996.3478,0.000479,2]
[341094997,1730363449443,-1000.0,0.000479,2]
[341094998,1730363449454,-961.4534,0.000479,2]
[341094999,1730363449466,-1000.0,0.000479,2]
[341095000,1730363449476,-2334.42,0.000479,60]
[341095001,1730363449485,-150.01,0.00047945,2]
[341095002,1730363449495,-321.64046036,0.00047973,10]
[341095003,1730363449504,-500.0,0.00047973,10]
[341095004,1730363449513,-200.0,0.00048,120]
[341095005,1730363449524,-328783.0,0.00048,2]
[341095006,1730363449533,-456.58546638,0.00048124,2]
[341095007,1730363449542,-248.46,0.0004824,2]
[341095008,1730363449551,-169.92497156,0.0004826,28]
[341095009,1730363449561,-995.08,0.000483,107]
[341095010,1730363449570,-822.1,0.00048348,2]
[341095011,1730363449579,-2730.05,0.00048348,45]
[341095012,1730363449588,-584.56,0.00048356,2]
[341095013,1730363449599,-788.29,0.00048356,2]
[341095014,1730363449608,-759.7,0.00048356,2]
[341095015,1730363449618,-759.7,0.00048356,2]
[341095016,1730363449628,-759.7,0.00048356,2]
[341095017,1730363449637,-759.7,0.00048356,2]
[341095018,1730363449646,-759.7,0.00048356,2]
[341095019,1730363449657,-759.7,0.00048356,2]
[341095020,1730363449667,-759.7,0.00048356,2]
[341095021,1730363449676,-154.6,0.00048493,2]
[341095022,1730363449685,-5007.00863,0.00048591,30]
[341095023,1730363449694,-497.71,0.00048892,2]
[341095024,1730363449703,-11538.0,0.000489,3]
[341095025,1730363449716,-21583.46569132,0.00049,2]
[341095026,1730363449725,-166.89,0.00049036,2]
[341095027,1730363449733,-500.0,0.00049039,120]
[341095028,1730363449742,-958.74,0.000491,30]
[341095029,1730363449752,-168.88,0.00049221,120]
[341095030,1730363449763,-168.88,0.00049221,120]
[341095031,1730363449775,-168.88,0.00049221,120]
[341095032,1730363449786,-168.88,0.00049221,120]
[341095033,1730363449796,-168.88,0.00049221,120]
[341095034,1730363449806,-1500.0,0.000493,2]
[341095035,1730363449816,-2334.42,0.000493,60]
[341095036,1730363449826,-759.7,0.00049315,2]
[341095037,1730363449835,-759.7,0.00049315,2]
[341095038,1730363449846,-1500.0,0.00049315,120]
[341095039,1730363449857,-1000.0,0.00049352,2]
[341095040,1730363449866,-500.0,0.00049375,120]
[341095041,1730363449877,-577.808541,0.00049375,120]
[341095042,1730363449888,-1081.6064127,0.0004967,30]
[341095043,1730363449896,-156.66,0.000497,48]
[341095044,1730363449906,-156.66,0.000497,48]
[341095045,1730363449916,-156.66,0.000497,48]
[341095046,1730363449927,-156.66,0.000497,48]
[341095047,1730363449937,-995.08,0.00049775,118]
[341095048,1730363449947,-1072.99,0.000498,120]
[341095049,1730363449958,-11538.0,0.000498,5]
[341095050,1730363449971,-500.0,0.0005,120]
[341095051,1730363449980,-4007.76,0.0005,120]
[341095052,1730363449989,-2273.0,0.0005,5]
[341095053,1730363449998,-251.87016283,0.0005,90]
[341095054,1730363450007,-512.0532462,0.0005,120]
[341095055,1730363450016,-15093.0,0.0005,30]
[341095056,1730363450025,-11558.54,0.0005,120]
[341095057,1730363450034,-12499.99,0.0005,120]
[341095058,1730363450043,-12500.0,0.0005,120]
[341095059,1730363450053,-2599.97492459,0.0005,5]
[341095060,1730363450063,-200.65369435,0.0005,30]
[341095061,1730363450073,-1127.38284412,0.0005,2]
[341095062,1730363450085,-300.00071534,0.0005,5]
[341095063,1730363450095,-3943.21135615,0.0005,2]
[341095064,1730363450106,-1313.17425848,0.0005,7]
[341095065,1730363450115,-7202.46488047,0.0005,14]
[341095066,1730363450125,-430.33345928,0.0005,120]
[341095067,1730363450134,-150.0,0.0005,120]
[341095068,1730363450143,-200.0,0.00050008,120]
[341095069,1730363450152,-169.92497156,0.0005008,28]
[341095070,1730363450162,-157.43,0.00050098,2]
[341095071,1730363450171,-2479.8651,0.0005024,2]
[341095072,1730363450180,-12500.0,0.0005025,120]
[341095073,1730363450189,-110337.6077,0.0005034,2]
[341095074,1730363450198,-10089.8859,0.0005034,2]
[341095075,1730363450208,-837.9592,0.0005034,2]
[341095076,1730363450220,-500.0,0.0005036,120]
[341095077,1730363450229,-248.46,0.00050433,2]
[341095078,1730363450238,-162.03,0.00050451,120]
[341095079,1730363450247,-5264.0,0.00050475,4]
[341095080,1730363450256,-12500.0,0.000505,120]
[341095081,1730363450265,-629.0,0.00050532,120]
[341095082,1730363450274,-158.67635362,0.00050584,27]
[341095083,1730363450283,-55555.0,0.00050584,120]
[341095084,1730363450292,-500.0,0.00050673,5]
[341095085,1730363450301,-1000.0,0.00050683,120]
[341095086,1730363450310,-822.4310246,0.00050683,120]
[341095087,1730363450319,-2761.09,0.00050683,120]
[341095088,1730363450328,-208.0,0.00050684,7]
[341095089,1730363450337,-500.0,0.00050684,7]
[341095090,1730363450346,-342.08625376,0.00050684,7]
[341095091,1730363450354,-504.45733778,0.00050684,120]
[341095092,1730363450363,-565.47911711,0.00050684,120]
[341095093,1730363450372,-500.0,0.00050684,2]
[341095094,1730363450381,-631.74997064,0.00050684,2]
[341095095,1730363450390,-500.0,0.00050684,5]
[341095096,1730363450399,-500.0,0.00050684,5]
[341095097,1730363450408,-500.0,0.00050684,5]
[341095098,1730363450417,-500.0,0.00050684,5]
[341095099,1730363450427,-500.0,0.00050684,5]
[341095100,1730363450436,-500.0,0.00050684,2]
[341095101,1730363450446,-153.95634684,0.00050684,2]
[341095102,1730363450456,-500.0,0.00050684,2]
[341095103,1730363450467,-500.0,0.00050684,2]
[341095104,1730363450475,-500.0,0.00050684,2]
[341095105,1730363450484,-500.0,0.00050684,2]
[341095106,1730363450494,-500.0,0.00050684,2]
[341095107,1730363450504,-500.0,0.00050684,120]
[341095108,1730363450515,-308.45012477,0.00050684,120]
[341095109,1730363450525,-509.06903527,0.00050684,120]
[341095110,1730363450534,-512.65658884,0.00050684,120]
[341095111,1730363450544,-508.69504315,0.00050684,120]
[341095112,1730363450554,-511.09896023,0.00050684,120]
[341095113,1730363450564,-517.64729762,0.00050684,120]
[341095114,1730363450573,-500.0,0.00050684,120]
[341095115,1730363450582,-507.17750823,0.00050684,120]
[341095116,1730363450592,-503.06410835,0.00050684,120]
[341095117,1730363450601,-500.0,0.00050684,120]
[341095118,1730363450610,-500.0,0.00050684,120]
[341095119,1730363450619,-500.0,0.00050684,120]
[341095120,1730363450628,-500.0,0.00050684,120]
[341095121,1730363450636,-516.89198401,0.00050684,120]
[341095122,1730363450645,-500.0,0.00050684,120]
[341095123,1730363450655,-500.0,0.00050684,120]
[341095124,1730363450664,-500.0,0.00050684,120]
[341095125,1730363450673,-500.0,0.00050684,120]
[341095126,1730363450681,-500.0,0.00050684,120]
[341095127,1730363450690,-500.0,0.00050684,120]
[341095128,1730363450699,-500.0,0.00050684,120]
[341095129,1730363450709,-500.0,0.00050684,120]
[341095130,1730363450718,-500.0,0.00050684,120]
[341095131,1730363450727,-500.0,0.00050684,120]
[341095132,1730363450737,-500.0,0.00050684,120]
[341095133,1730363450748,-545.54338757,0.00050684,120]
[341095134,1730363450757,-500.0,0.00050684,120]
[341095135,1730363450767,-500.0,0.00050684,120]
[341095136,1730363450777,-500.0,0.00050684,120]
[341095137,1730363450786,-500.0,0.00050684,120]
[341095138,1730363450795,-509.82,0.00050684,120]
[341095139,1730363450803,-509.82,0.00050684,120]
[341095140,1730363450812,-509.82,0.00050684,120]
[341095141,1730363450821,-509.82,0.00050684,120]
[341095142,1730363450830,-500.0,0.00050684,120]
[341095143,1730363450839,-500.0,0.00050684,120]
[341095144,1730363450848,-500.0,0.00050684,120]
[341095145,1730363450857,-500.0,0.00050684,120]
[341095146,1730363450866,-531.61,0.00050684,120]
[341095147,1730363450875,-531.61,0.00050684,120]
[341095148,1730363450885,-531.61,0.00050684,120]
[341095149,1730363450894,-531.61,0.00050684,120]
[341095150,1730363450903,-500.0,0.00050684,120]
[341095151,1730363450912,-500.0,0.00050684,120]
[341095152,1730363450921,-500.0,0.00050684,120]
[341095153,1730363450930,-500.0,0.00050684,120]
[341095154,1730363450940,-500.0,0.00050684,2]
[341095155,1730363450949,-500.0,0.00050684,2]
[341095156,1730363450958,-500.0,0.00050684,2]
[341095157,1730363450967,-500.0,0.00050684,2]
[341095158,1730363450977,-500.0,0.00050684,120]
[341095159,1730363450985,-500.0,0.00050684,120]
[341095160,1730363450994,-500.0,0.00050684,120]
[341095161,1730363451004,-500.0,0.00050684,120]
[341095162,1730363451013,-200.0,0.00050684,7]
[341095163,1730363451022,-200.0,0.00050684,7]
[341095164,1730363451031,-212.81220545,0.00050684,7]
[341095165,1730363451040,-500.0,0.00050684,120]
[341095166,1730363451049,-500.0,0.00050684,120]
[341095167,1730363451058,-500.0,0.00050684,120]
[341095168,1730363451067,-500.0,0.00050684,120]
[341095169,1730363451076,-500.0,0.00050684,120]
[341095170,1730363451085,-500.0,0.00050684,120]
[341095171,1730363451094,-500.0,0.00050684,120]
[341095172,1730363451107,-500.0,0.00050684,120]
[341095173,1730363451117,-384.19725552,0.00050684,120]
[341095174,1730363451128,-500.0,0.00050684,120]
[341095175,1730363451138,-500.0,0.00050684,120]
[341095176,1730363451149,-500.0,0.00050684,120]
[341095177,1730363451159,-500.0,0.00050684,120]
[341095178,1730363451169,-646.65,0.00050684,120]